[Event "1st FIDE Olympiad DIS 2023"]
[Site "Belgrade"]
[Date "2023.02.01"]
[Round "3.19"]
[White "Darpan, Inani"]
[Black "Gurbanov, Andrei"]
[Result "0-1"]
[ECO "C30"]
[WhiteElo "2016"]
[BlackElo "2275"]
[Annotator "TA"]
[PlyCount "76"]
[EventDate "2023.01.30"]
[EventType "team-tourn"]
[EventCountry "SRB"]
[SourceTitle "playchess.com"]
[Source "ChessBase"]
[SourceQuality "1"]
[WhiteTeam "India"]
[BlackTeam "Israel"]
[WhiteTeamCountry "IND"]
[BlackTeamCountry "ISR"]
[TimeControl "40/5400+30:1800+30"]

{[%evp 12,76,0,-24,20,28,28,27,20,23,29,14,25,25,33,27,116,58,77,75,100,97,120,72,129,121,155,115,477,472,427,448,414,225,241,138,134,128,122,129,106,95,94,90,271,254,239,214,208,-320,-323,-325,-311,-331,-325,-363,-358,-395,-395,-388,-388,-497,-447,-429,-414,-581,-560]} 1. e4 {[%emt 0:00:48]} e5 {[%emt 0:00:16]} 2. Nc3 {[%emt 0:00:08]} Nf6 {[%emt 0:03:01]} 3. Bc4 {[%emt 0:00:16]} Nc6 {[%emt 0:05:36]} 4. d3 {[%emt 0:00:22]} Bc5 {[%emt 0:00:35]} 5. f4 {[%emt 0:00:33]} d6 {[%emt 0:00:30]} 6. Nf3 {[%emt 0:00:16]} a6 $1 {[%emt 0:00:39][%mdl 4] is now more promising than 6...Bg4.} 7. Nd5 {[%emt 0:10:31]} Bg4 {[%emt 0:09:29] C30: King's Gambit Declined.} 8. c3 $1 {[%emt 0:06:57]} O-O {[%emt 0:09:56]} 9. f5 {[%emt 0:00:48] And now Bg5 would win.} Nxd5 {[%emt 0:07:09] White has an edge.} 10. Bxd5 {[%emt 0:00:19]} Ne7 $1 {[%emt 0:05:55] [#] ...Nxd5 is the strong threat.} 11. Bb3 {[%emt 0:06:09]} (11. Bxb7 Ra7 12. f6 gxf6 $17) 11... d5 {[%emt 0:04:02]} 12. h3 {[%emt 0:00:15][%cal Bh2h3,Bh3h4][%mdl 32]} Bxf3 {[%emt 0:01:02]} 13. Qxf3 {[%emt 0:00:11] [#] f6 would be deadly.} c6 $146 {[%emt 0:07:34]} (13... Qd6 $11 {remains equal.}) ({Predecessor:} 13... Qd6 14. Rf1 f6 15. g4 a5 16. a4 Qb6 17. Ba2 Kh8 18. Kd1 Rfd8 19. Kc2 Qc6 {½-½ Schatz,D (1783)-Leidner,M (1485) GER OS-283 email 2016}) 14. g4 {[%emt 0:13:40]} ({Better is} 14. f6 $16) 14... Qd6 {[%emt 0:03:28]} 15. g5 {[%emt 0:15:39]} Rad8 {[%emt 0:06:38]} 16. h4 {[%emt 0:07:37]} Nc8 {[%emt 0:05:56]} 17. Ke2 {[%emt 0:14:50]} (17. f6 $142) 17... Rd7 {[%emt 0:03:47]} ({Black should try} 17... g6) 18. h5 {[%emt 0:01:51]} Rfd8 {[%emt 0:00:35]} 19. g6 {[%emt 0:05:58] aiming for h6.} (19. exd5 $6 cxd5 20. g6 e4 $14) 19... fxg6 $2 {[%emt 0:03:26][%mdl 8192]} (19... dxe4 $2 20. dxe4 h6 21. f6 (21. gxf7+ Kf8 $18) 21... Qxf6 22. Qxf6 (22. gxf7+ Kh8 $18) (22. Bxf7+ Rxf7 23. gxf7+ Qxf7 $16) 22... gxf6 23. Bxh6 $18 (23. gxf7+ Kh7 $16)) (19... h6 $16) 20. hxg6 $18 {[%emt 0:00:12]} (20. Bg5 gxf5 21. exd5 cxd5 $16) 20... hxg6 {[%emt 0:00:16]} 21. Bg5 {[%emt 0:07:30]} (21. Qh3 Kf7 22. exd5 cxd5 $18) 21... Rf8 {[%emt 0:00:04]} 22. Qh3 {[%emt 0:02:09]} (22. Rae1 $142) 22... Kf7 {[%emt 0:04:10]} 23. fxg6+ {[%emt 0:01:10]} (23. d4 exd4 24. Rae1 dxc3) (23. Rae1 $18 Ke8 24. d4) 23... Ke8 $16 {[%emt 0:00:04]} 24. Raf1 {[%emt 0:01:50]} Qxg6 {[%emt 0:00:48]} 25. Rxf8+ {[%emt 0:00:31]} Bxf8 {[%emt 0:00:04]} 26. Qg4 {[%emt 0:01:46]} Nb6 {[%emt 0:03:52]} 27. Rh8 {[%emt 0:00:58][%mdl 1024] White has strong compensation.} Qf7 $2 {[%emt 0:02:32]} (27... Rf7 $16 28. Qg3 Kd7) 28. Be3 {[%emt 0:00:40] A strong pair of Bishops.} Nc8 {[%emt 0:00:43][%cal Bb6c8,Bc8e7,Be7g6][%mdl 32]} 29. Bc5 {[%emt 0:00:25]} Ne7 {[%emt 0:00:03]} 30. Qf3 {[%emt 0:00:39][%mdl 8192]} (30. d4 $18 {avoids the disaster.} Ng8 31. Bc2 (31. Qg5 Bxc5 32. dxc5 Kf8 $16) 31... Bxc5 32. exd5) 30... Qxf3+ $19 {[%emt 0:00:39]} ({Avoid the trap} 30... Ng6 $2 31. Rxf8+ (31. Qxf7+ $2 Kxf7 32. Bxf8 Nxh8 $19) 31... Nxf8 32. Qh1 $19) 31. Kxf3 {[%emt 0:00:06]} Ng6 {[%emt 0:00:10][%mdl 64] [#] Discovered Attack} 32. Rg8 {[%emt 0:00:34]} Kf7 {[%emt 0:00:12][%csl LRc5,LRg8]} 33. exd5 {[%emt 0:00:20]} cxd5 {[%emt 0:00:18]} (33... Kxg8 $2 34. dxc6+ Rf7+ 35. Bxf7+ Kxf7 36. c7 Bxc5 37. c8=Q $18 (37. c8=R Bd6 $11)) 34. Bxf8 {[%emt 0:00:19]} Kxg8 {[%emt 0:00:08] KRN-KB} 35. Bc5 {[%emt 0:00:52]} Kf7 {[%emt 0:00:38]} 36. a4 {[%emt 0:00:17]} Kf6 {[%emt 0:01:19]} 37. a5 {[%emt 0:00:05]} Ne7 {[%emt 0:01:28]} 38. Bxe7+ {[%emt 0:00:57]} (38. Ba4 $142 Rc7 39. Bb6) 38... Kxe7 {[%emt 0:00:09] Excellently played by Gurbanov!   Weighted Error Value: White=0.52/Black=0.35} 0-1

[Event "1st FIDE Olympiad DIS 2023"]
[Site "Belgrade"]
[Date "2023.02.01"]
[Round "3.20"]
[White "Sarkar, Ali Newaz"]
[Black "Ryvova, Anna"]
[Result "1-0"]
[ECO "B50"]
[WhiteElo "1809"]
[BlackElo "1823"]
[Annotator "NA RC COMBH"]
[PlyCount "129"]
[EventDate "2023.01.30"]
[EventType "team-tourn"]
[EventCountry "SRB"]
[SourceTitle "playchess.com"]
[Source "ChessBase"]
[SourceQuality "1"]
[WhiteTeam "Bangladesh"]
[BlackTeam "Czech Republic"]
[WhiteTeamCountry "BAN"]
[BlackTeamCountry "CZE"]
[TimeControl "40/5400+30:1800+30"]

1. e4 {[%emt 0:00:10]} c5 {[%emt 0:00:01]} 2. Nf3 {[%emt 0:00:28]} d6 {[%emt 0:00:06]} 3. h3 {[%emt 0:00:31]} Nf6 {[%emt 0:00:26]} 4. Nc3 {[%emt 0:01:31]} Nc6 {[%emt 0:00:12]} 5. a3 {[%emt 0:00:41]} e6 {[%emt 0:01:08]} 6. Be2 {[%emt 0:03:53]} Be7 {[%emt 0:00:32]} 7. d4 {[%emt 0:00:58]} cxd4 {[%emt 0:00:24]} 8. Nxd4 {[%emt 0:00:12]} O-O {[%emt 0:02:10]} 9. O-O {[%emt 0:00:13]} a6 {[%emt 0:02:07]} 10. Nf3 {[%emt 0:03:41]} Qc7 {[%emt 0:00:00]} 11. Be3 {[%emt 0:00:17]} b5 {[%emt 0:00:53]} 12. Bf4 {[%emt 0:03:32]} Rd8 {[%emt 0:02:25]} 13. Bd3 {[%emt 0:00:32]} Bb7 {[%emt 0:02:51]} 14. Qe2 {[%emt 0:00:28]} Nd7 {[%emt 0:07:41]} 15. Qe3 {[%emt 0:07:46]} Nce5 {[%emt 0:04:07]} 16. Nxe5 {[%emt 0:02:36]} (16. Rad1 $1 $15) 16... Nxe5 {[%emt 0:00:11]} (16... dxe5 $17 17. Bg3 Bc5) 17. Bxe5 {[%emt 0:07:01]} dxe5 {[%emt 0:00:07]} 18. Ne2 {[%emt 0:02:46]} (18. Qe2 $15 {was preferrable.}) 18... Qc6 {[%emt 0:08:17]} 19. Kh1 {[%emt 0:05:17]} f5 {[%emt 0:04:28]} 20. Nc3 {[%emt 0:01:32]} (20. f3 $15) 20... b4 {[%emt 0:10:59]} ({Better is} 20... g6 $17) 21. axb4 {[%emt 0:02:04]} Bxb4 {[%emt 0:00:09]} 22. f3 {[%emt 0:00:24]} f4 {[%emt 0:04:11]} 23. Qe2 {[%emt 0:01:28]} Rd6 {[%emt 0:06:21]} ({Black should try} 23... Bxc3 $11 24. bxc3 a5) 24. Nb1 {[%emt 0:05:06]} Rad8 {[%emt 0:04:41]} ({Black should play} 24... Rdd8 $11) 25. Nd2 {[%emt 0:00:51]} Bxd2 {[%emt 0:05:43]} 26. Qxd2 {[%emt 0:00:27]} Qb6 {[%emt 0:00:12]} (26... Qc7 $142) 27. Qc3 {[%emt 0:02:28]} Rd4 {[%emt 0:03:13]} 28. Ra3 {[%emt 0:00:40]} Rc8 {[%emt 0:12:14]} 29. Qa5 {[%emt 0:03:27]} Qc5 {[%emt 0:08:21]} ({Black should play} 29... Qd6) 30. Qxc5 {[%emt 0:00:44]} Rxc5 {[%emt 0:00:03]} 31. Rb3 {[%emt 0:00:32]} Rd7 {[%emt 0:00:43]} 32. Ra1 {[%emt 0:00:34]} Rdc7 {[%emt 0:03:32]} (32... g5 $142) 33. Ra4 {[%emt 0:01:17]} Bc8 {[%emt 0:01:43]} 34. Rb8 {[%emt 0:00:43]} Rb7 {[%emt 0:01:42]} 35. Rb4 {[%emt 0:01:20]} Rxb4 {[%emt 0:00:30]} 36. Rxb4 {[%emt 0:00:28]} Rc6 {[%emt 0:02:15]} 37. b3 {[%emt 0:00:33]} Kf7 {[%emt 0:00:58]} 38. Kg1 {[%emt 0:00:37]} Ke7 {[%emt 0:00:37]} (38... a5 $14 39. Ra4 Rc5) 39. Kf2 {[%emt 0:00:38]} Kd6 {[%emt 0:00:35]} (39... Rc5 $14) 40. Ke2 {[%emt 0:00:29]} Kc7 {[%emt 0:02:05]} (40... Rc5 $16 {was necessary.}) 41. Ra4 {[%emt 0:31:22]} Kb6 {[%emt 0:30:43] [#]} 42. b4 $1 {[%emt 0:00:43]} Kc7 {[%emt 0:00:00]} 43. Ra5 {[%emt 0:00:00]} Kd6 {[%emt 0:00:00]} 44. Kd2 {[%emt 0:00:00]} Bb7 {[%emt 0:00:00]} 45. c3 {[%emt 0:00:00]} Bc8 {[%emt 0:00:00]} 46. Kc2 {[%emt 0:00:00]} Bb7 {[%emt 0:00:00]} 47. Kb3 {[%emt 0:00:00]} Bc8 {[%emt 0:00:00]} 48. Bc4 {[%emt 0:00:00]} Bb7 {[%emt 0:00:00]} 49. Ra1 {[%emt 0:00:52]} Ke7 {[%emt 0:00:54]} 50. Ra2 {[%emt 0:00:00]} Bc8 {[%emt 0:00:00]} 51. Bd3 {[%emt 0:00:00]} Rd6 {[%emt 0:00:00]} 52. Kc2 {[%emt 0:00:00]} Rc6 {[%emt 0:00:00]} 53. c4 {[%emt 0:00:00]} Bb7 {[%emt 0:00:00]} 54. Kc3 {[%emt 0:00:00]} Kd6 {[%emt 0:00:00]} 55. Bc2 {[%emt 0:00:00]} Ke7 {[%emt 0:00:00]} 56. c5 {[%emt 0:00:00]} g5 {[%emt 0:00:00]} 57. Ba4 {[%emt 0:00:00]} Rc8 {[%emt 0:00:00]} 58. Rd2 {[%emt 0:00:00]} Rd8 {[%emt 0:00:00]} 59. Rxd8 {[%emt 0:00:00]} Kxd8 {[%emt 0:00:00] [#]} 60. c6 $1 {[%emt 0:00:00]} Bc8 {[%emt 0:00:00]} 61. Kc4 {[%emt 0:00:00]} Kc7 {[%emt 0:00:00]} 62. Kc5 {[%emt 0:00:00]} h6 {[%emt 0:00:00]} 63. Bb3 {[%emt 0:00:00]} h5 {[%emt 0:01:30]} 64. Bc4 {[%emt 0:00:00]} h4 {[%emt 0:03:27]} 65. Be2 {[%emt 0:00:00]} 1-0

[Event "1st FIDE Olympiad DIS 2023"]
[Site "Belgrade"]
[Date "2023.02.01"]
[Round "3.20"]
[White "Aleksandrova, Aleksandra"]
[Black "Naveen, Kumar A."]
[Result "0-1"]
[ECO "D05"]
[WhiteElo "1701"]
[BlackElo "2014"]
[Annotator "TA"]
[PlyCount "126"]
[EventDate "2023.01.30"]
[EventType "team-tourn"]
[EventCountry "SRB"]
[SourceTitle "playchess.com"]
[Source "ChessBase"]
[SourceQuality "1"]
[WhiteTeam "Israel"]
[BlackTeam "India"]
[WhiteTeamCountry "ISR"]
[BlackTeamCountry "IND"]
[TimeControl "40/5400+30:1800+30"]

{[%evp 10,126,6,4,15,-15,22,18,47,47,46,41,83,82,81,76,83,66,93,98,114,109,133,87,90,45,52,52,176,180,192,197,152,210,189,85,175,16,221,69,154,155,335,0,0,0,0,0,0,0,0,0,30,28,28,30,28,39,112,100,145,15,137,0,0,0,0,-279,-273,-413,-385,-463,-475,-461,-439,-435,-81,-96,-108,-316,-52,-43,-47,-53,-44,-156,-81,-356,-396,-369,-339,-389,-341,-1254,-922,-29965,-29945,-29979,-29966,-29981,-29982,-29982,-29983,-29987,-29984,-29983,-29977,-29984,-29978,-29978,-29979,-29979,-29980,-29979,-29980,-29981,-29982,-29982,-29983]} 1. d4 {[%emt 0:00:03]} d5 {[%emt 0:00:15]} 2. Nf3 {[%emt 0:00:44]} Nf6 {[%emt 0:00:30]} 3. e3 {[%emt 0:00:12]} e6 {[%emt 0:07:52]} 4. Bd3 {[%emt 0:00:22]} c5 {[%emt 0:00:23]} 5. c3 {[%emt 0:02:24]} Nc6 {[%emt 0:07:08]} 6. Nbd2 {[%emt 0:00:27]} a6 {[%emt 0:12:04] D05: Colle System with ...e6.} 7. a4 {[%emt 0:01:48]} Bd7 {[%emt 0:09:13] [#]} 8. Ne5 $146 {[%emt 0:05:40]} ({Predecessor:} 8. O-O c4 9. Bc2 b5 10. h3 Bd6 11. Re1 O-O 12. Nf1 b4 13. Bd2 b3 14. Bb1 e5 15. dxe5 Nxe5 {½-½ Sibanc,B (1899)-Rokvic,V (1949) SLO-chT2 Ost 2009 (1)}) 8... Nxe5 {[%emt 0:16:20][%mdl 64] Remove Defender. The position is equal.} 9. dxe5 {[%emt 0:00:06]} Ng8 {[%emt 0:00:04]} 10. O-O {[%emt 0:04:56]} f5 {[%emt 0:04:14]} 11. exf6 {[%emt 0:00:00]} Nxf6 {[%emt 0:00:32]} 12. e4 {[%emt 0:00:00][%cal Be3e4,Be4e5][%mdl 32]} Qc7 {[%emt 0:06:16]} 13. Qe2 {[%emt 0:07:40]} O-O-O {[%emt 0:06:05]} 14. e5 $1 {[%emt 0:04:25]} Ng8 {[%emt 0:01:18]} 15. Nf3 {[%emt 0:03:45]} h6 {[%emt 0:04:16]} 16. a5 {[%emt 0:04:47]} ({White should try} 16. b4) 16... g5 $16 {[%emt 0:03:00]} 17. h3 {[%emt 0:00:47][%cal Ob2b4]} Ne7 {[%emt 0:00:34]} 18. b4 {[%emt 0:02:33] bxc5 is the strong threat.} Nc6 {[%emt 0:05:34]} (18... d4 $14) 19. Be3 $1 $18 {[%emt 0:27:32]} d4 {[%emt 0:00:37]} 20. cxd4 {[%emt 0:02:12]} Nxb4 {[%emt 0:01:17]} 21. Bc4 {[%emt 0:03:15]} Nd5 {[%emt 0:08:22]} 22. Bd2 {[%emt 0:00:27]} (22. Rfc1 $18 {is more deadly.}) 22... Bc6 {[%emt 0:00:39]} (22... Rg8 $16) 23. Rfb1 $2 {[%emt 0:03:38]} (23. dxc5 $1 $18 {Hoping for Nd4.} Bg7 24. Rab1) 23... Kd7 $2 {[%emt 0:01:18]} (23... Rg8 $1 $11) 24. Qd3 $2 {[%emt 0:05:22]} (24. dxc5 $1 $18 Ke8 25. Nd4) 24... Be7 {[%emt 0:01:08]} (24... Ke8 $14) 25. Rb2 $16 {[%emt 0:02:35]} Rdg8 $2 {[%emt 0:00:45]} (25... Kc8 $16) 26. Rab1 $2 {[%emt 0:02:09]} (26. dxc5 $18 {Rab1 would be deadly.} g4 27. hxg4 Rxg4 28. Bxd5 Bxd5 29. c6+ bxc6 30. Rab1) 26... g4 $1 $11 {[%emt 0:00:34]} 27. hxg4 {[%emt 0:01:04]} Rxg4 {[%emt 0:00:07]} 28. dxc5 {[%emt 0:00:52]} Ke8 {[%emt 0:01:43]} 29. g3 $36 {[%emt 0:05:06][%mdl 2048] aiming for Nd4. White is pushing.} Bxc5 {[%emt 0:00:43]} 30. Nh2 {[%emt 0:01:28]} Rd4 {[%emt 0:01:00]} 31. Qg6+ {[%emt 0:00:38]} Qf7 $1 {[%emt 0:00:03]} 32. Qxf7+ {[%emt 0:03:42]} Kxf7 {[%emt 0:00:02]} 33. Be2 {[%emt 0:02:01]} Kg7 {[%emt 0:01:50]} ({Better is} 33... Rc8 $14) 34. Nf3 {[%emt 0:01:56]} Rg4 {[%emt 0:00:15]} 35. Kg2 {[%emt 0:00:24]} ({White should play} 35. Rxb7+ $1 $16 Bxb7 36. Rxb7+ Kf8 37. Kg2 (37. Bxa6 $2 Rxg3+ 38. Kf1 Rxf3 $19)) 35... Rf8 {[%emt 0:00:27]} (35... Rc8 $1 $11) 36. Kh3 {[%emt 0:00:26]} ({White must play} 36. Rxb7+ $1 $16 Bxb7 37. Rxb7+ Kh8 38. Bxh6 Nf4+ 39. Kf1 Nxe2 40. Bxf8 (40. Kxe2 Ra8 $16) 40... Nxg3+ 41. fxg3 Bxf8 42. Kg2) 36... Re4 $1 {[%emt 0:00:29]} 37. Bd3 {[%emt 0:00:45]} Ra4 {[%emt 0:00:46]} 38. Nh4 {[%emt 0:01:06][%mdl 8192]} (38. Rxb7+ $11 {and White has nothing to worry.} Ne7 39. Be3 Bxb7 40. Rxb7 Bxe3 41. Rxe7+ Kh8 42. Nh4) 38... Rxf2 $19 {[%emt 0:00:24][%cal Oa4h4] White must now prevent ...Rxh4+!} (38... Bxf2 $2 39. Rxb7+ Bxb7 40. Rxb7+ Rf7 41. Bxh6+ (41. Bxa6 $2 {perishes.} Ra3 $19) 41... Kxh6 42. Rxf7 $18) 39. Ng6 {[%emt 0:01:15] Inhibits Rxh4+.} (39. Be1 {might work better.} Rxb2 40. Rxb2) 39... Ra3 {[%emt 0:00:36]} 40. Be4 {[%emt 0:00:45] [#]} Nf4+ $1 {[%emt 0:00:20][%mdl 576] Discovered Attack} 41. Nxf4 {[%emt 0:05:06]} Bxe4 {[%emt 0:01:49]} 42. Rxb7+ {[%emt 0:06:50]} Bxb7 $2 {[%emt 0:11:36]} (42... Kg8 $1 $19 {has better winning chances. ( -> ...Bf5+)} 43. Rb8+ Bf8 44. Rxf8+ {[%mdl 64] Decoy} Kxf8 45. Bb4+ Kf7 46. Bxa3 Bxb1) 43. Rxb7+ $17 {[%emt 0:00:01]} Kg8 {[%emt 0:01:01]} 44. Bc1 {[%emt 0:00:58]} (44. Nxe6 $17 {was necessary.} Rxd2 45. Nxc5) 44... Rxa5 $2 {[%emt 0:11:13]} (44... Rc3 $19 45. Rb8+ Kf7) 45. Nxe6 $15 {[%emt 0:00:19]} Rf7 {[%emt 0:01:04]} 46. Rb8+ {[%emt 0:02:07]} Kh7 $1 {[%emt 0:00:07]} 47. Nd8 {[%emt 0:04:53]} (47. Bd2 $15 Ra2 48. Bf4) 47... Rg7 {[%emt 0:01:49]} (47... Rf1 $142 $1 {[%cal Rf1c1]} 48. Bf4 Rb5) 48. Nc6 $2 {[%emt 0:03:31][%mdl 8192]} (48. Ne6 $17) 48... Rb5 $19 {[%emt 0:00:13] And now ...Rc7 would win.} 49. Ra8 {[%emt 0:07:51]} Rb3 {[%emt 0:00:10]} 50. Bf4 {[%emt 0:01:05][%cal Oe5e6]} Bf2 {[%emt 0:00:05][%cal Rf2g3]} 51. Na5 $2 {[%emt 0:01:55]} (51. Rxa6 Bxg3 52. Nd4 Bxf4+ 53. Nxb3 Rg3+ 54. Kh4 Rxb3 55. Kh5) 51... Rc3 {[%emt 0:03:01][%cal Rf2g3]} 52. Rxa6 {[%emt 0:00:14]} Bxg3 {[%emt 0:00:32] Black mates.} 53. Rxh6+ {[%emt 0:00:21]} Kg8 {[%emt 0:00:02]} 54. Bxg3 {[%emt 0:00:23]} Rcxg3+ {[%emt 0:00:07] KRR-KRN} (54... Rgxg3+ 55. Kh2 $17) 55. Kh2 {[%emt 0:00:51] [#]} Rg2+ $1 {[%emt 0:00:40]} 56. Kh3 {[%emt 0:00:53]} Rg1 {[%emt 0:00:48][%cal Rg1h1]} 57. Kh2 {[%emt 0:00:17] [#]} R7g2+ $1 {[%emt 0:00:13]} 58. Kh3 {[%emt 0:00:22]} Ra2 {[%emt 0:00:12]} 59. Ra6 {[%emt 0:01:13]} Rga1 {[%emt 0:00:37]} 60. Ra8+ {[%emt 0:00:41]} Kg7 {[%emt 0:00:12]} 61. Ra7+ {[%emt 0:01:09]} Kg6 {[%emt 0:00:01]} 62. e6 {[%emt 0:00:22]} Rxa5 {[%emt 0:00:10]} 63. e7 {[%emt 0:00:12]} Kf7 {[%emt 0:00:02] Never resign too early!   Weighted Error Value: White=0.70/Black=0.44} ({Not} 63... Rxa7 64. e8=Q+ Rf7 65. Kh4 Rh1+ 66. Kg4 $11) 0-1

[Event "1st FIDE Olympiad DIS 2023"]
[Site "Belgrade"]
[Date "2023.02.01"]
[Round "3.21"]
[White "Morales Romero, Pedro"]
[Black "Bursuc, Mihai"]
[Result "1-0"]
[ECO "B76"]
[WhiteElo "2339"]
[BlackElo "1823"]
[Annotator "TA"]
[PlyCount "51"]
[EventDate "2023.01.30"]
[EventType "team-tourn"]
[EventCountry "SRB"]
[SourceTitle "playchess.com"]
[Source "ChessBase"]
[SourceQuality "1"]
[WhiteTeam "Cuba"]
[BlackTeam "Romania"]
[WhiteTeamCountry "CUB"]
[BlackTeamCountry "ROU"]
[TimeControl "40/5400+30:1800+30"]

{[%evp 21,51,11,10,0,8,-10,50,50,47,38,50,66,112,79,154,87,286,199,250,168,527,525,744,477,937,558,896,857,6133,6612,29991,29992]} 1. e4 {[%emt 0:00:18]} c5 {[%emt 0:00:22]} 2. Nf3 {[%emt 0:00:40]} d6 {[%emt 0:00:19]} 3. d4 {[%emt 0:00:49]} cxd4 {[%emt 0:00:19]} 4. Nxd4 {[%emt 0:01:10]} Nf6 {[%emt 0:00:43]} 5. Nc3 {[%emt 0:00:25]} g6 {[%emt 0:00:30]} 6. Be3 {[%emt 0:02:40]} Bg7 {[%emt 0:00:18]} 7. f3 {[%emt 0:00:15]} O-O {[%emt 0:00:38]} 8. Qd2 {[%emt 0:00:08]} Nc6 {[%emt 0:00:17]} 9. O-O-O {[%emt 0:00:27]} d5 {[%emt 0:03:09]} 10. Nxc6 {[%emt 0:04:12]} bxc6 {[%emt 0:00:15]} 11. Bc4 {[%emt 0:03:08]} e6 {[%emt 0:03:17]} 12. Bb3 {[%emt 0:01:34] B76: Sicilian Dragon: Yugoslav Attack, 9 g4 and 9 0-0-0.} Qc7 {[%emt 0:01:56] [#]} 13. g4 $146 {[%emt 0:09:56][%cal Bg2g4,Bg4g5][%mdl 32]} ({Predecessor:} 13. h4 Rd8 14. Bh6 Bxh6 15. Qxh6 Nh5 16. Kb1 Qf4 17. Qg5 Ba6 18. Rhe1 Kg7 19. Qe7 Qf6 {1-0 Demchenko,A (2655)-Korchmar,V (2450) Titled Tuesday intern op 30th Nov blitz 2021 (3)}) 13... dxe4 {[%emt 0:07:00]} (13... Ba6 $11) 14. g5 $14 {[%emt 0:00:31] White is slightly better.} Nd5 {[%emt 0:00:32] Threatens to win with ...Bxc3.} 15. Nxe4 {[%emt 0:00:13]} Nxe3 {[%emt 0:06:53]} 16. Qxe3 {[%emt 0:00:28]} Be5 {[%emt 0:00:17]} (16... c5 $14) 17. Kb1 {[%emt 0:01:07] White is much more active. The black rooks are badly placed.} a5 {[%emt 0:01:53] [#]} (17... Qb6 $142 18. Qd2 c5) 18. a4 {[%emt 0:09:30]} (18. Nf6+ $142 $1 Kg7 19. Rhe1 (19. Ng4 Bf4 $11)) 18... Bf4 $2 {[%emt 0:04:54]} (18... c5 $16 {is a better defense.}) 19. Qc5 {[%emt 0:03:40]} Rb8 {[%emt 0:01:54]} (19... Qe5 {was called for.}) 20. h4 {[%emt 0:01:19][%cal Bh2h4,Bh4h5,Bh5h6][%mdl 32]} Ba6 $2 {[%emt 0:02:53]} (20... Qe5 {is tougher.}) 21. h5 $18 {[%emt 0:02:06] hxg6 would be deadly.} Kg7 {[%emt 0:05:26]} 22. Rh4 {[%emt 0:03:11] Black must now prevent hxg6.} Be2 {[%emt 0:04:22]} (22... Qe5 $142 23. Qe7 (23. Qxc6 Bb7 $11) 23... Be2) 23. h6+ {[%emt 0:04:26]} Kh8 {[%emt 0:00:24] [#]} 24. Rd7 {[%emt 0:01:13][%mdl 576] Deflection} Qe5 {[%emt 0:00:54] [#]} (24... Qxd7 25. Rxf4) 25. Rxf4 $1 {[%emt 0:01:07][%mdl 512]} Qxf4 {[%emt 0:04:00] [#]} (25... Qxc5 26. Nxc5) 26. Bxe6 $1 {[%emt 0:02:33][%mdl 512] White took control after the opening. A fantastic game!   Weighted Error Value: White=0.73/Black=1.11} 1-0